bitfinex/quotes_SOLUSD_20260102
["timestamp","ask_amount","ask_price","bid_price","bid_amount"]
[1767345069088,0.67329966,128.33,128.3,7.79410952]
[1767345070889,0.67329966,128.35,128.3,27.939065]
[1767345071602,0.67329966,128.35,128.3,8.45348433]
[1767345071763,0.67329966,128.35,128.3,7.79410952]
[1767345072085,5.4051618,128.33,128.29,8.45392872]
[1767345072269,0.67329966,128.32,128.29,7.79472349]
[1767345072658,0.67329966,128.32,128.28,8.45455846]
[1767345072858,0.67329966,128.37,128.3,0.65937481]
[1767345073064,0.67329966,128.34,128.3,0.65937481]
[1767345074176,0.67329966,128.34,128.3,8.45326238]
[1767345075896,0.67329966,128.34,128.29,27.94131416]
[1767345076068,6.07846146,128.34,128.29,27.94131416]
[1767345076679,0.67329966,128.33,128.29,27.94131416]
[1767345076882,0.67329966,128.33,128.3,13.9]
[1767345077074,6.07846146,128.34,128.3,14.55937481]
[1767345077697,5.4051618,128.32,128.3,13.175]
[1767345077998,0.635,128.33,128.29,8.45415803]
[1767345078169,6.0401618,128.33,128.29,8.45415803]
[1767345079771,5.4051618,128.32,128.29,8.45415803]
[1767345080118,0.635,128.33,128.29,8.45415803]
[1767345080276,5.4051618,128.32,128.29,8.45415803]
[1767345081102,6.0401618,128.32,128.28,7.79532426]
[1767345081272,6.0401618,128.32,128.28,8.45469907]
[1767345081998,5.4051618,128.3,128.26,8.45572753]
[1767345083879,14.2,128.31,128.27,0.65937481]
[1767345084179,5.4051618,128.32,128.29,0.65937481]
[1767345084972,6.0401618,128.33,128.29,0.65937481]
[1767345085691,22.62622804,128.35,128.29,0.65937481]
[1767345085901,6.0401618,128.34,128.29,0.65937481]
[1767345086078,5.4051618,128.33,128.29,0.65937481]
[1767345086285,5.4051618,128.33,128.3,7.79423226]
[1767345086483,0.635,128.34,128.3,7.79423226]
[1767345086693,5.4051618,128.33,128.3,7.79423226]
[1767345086875,6.0401618,128.34,128.3,8.51335183]
[1767345087297,6.0401618,128.36,128.34,5.4051618]
[1767345087504,5.4051618,128.35,128.31,0.71911957]
[1767345087681,5.4051618,128.34,128.31,0.71911957]
[1767345088007,6.0401618,128.34,128.3,8.51335183]
[1767345089404,5.4051618,128.33,128.29,8.51373343]
[1767345089590,20.2401618,128.34,128.3,7.79417148]
[1767345089993,5.4051618,128.33,128.29,8.51355111]
[1767345090309,6.0401618,128.33,128.29,8.51355111]
[1767345091186,6.0401618,128.33,128.3,7.79414683]
[1767345091390,5.4051618,128.33,128.3,7.79414683]
[1767345091705,20.2401618,128.34,128.3,8.5132664]
[1767345092494,6.0401618,128.33,128.28,0.71911957]
[1767345093212,6.0401618,128.33,128.29,7.79464438]
[1767345093387,6.0401618,128.33,128.29,8.51376395]
[1767345093582,6.0401618,128.33,128.3,7.79415328]
[1767345094185,21.99192965,128.34,128.27,0.71911957]
[1767345094512,5.4051618,128.31,128.28,7.79511806]
[1767345095501,5.4051618,128.31,128.27,8.51504063]
[1767345095701,14.2,128.32,128.28,0.71911957]
[1767345095702,19.6051618,128.32,128.28,0.71911957]
[1767345096208,14.2,128.32,128.28,0.71911957]
[1767345096510,19.6051618,128.32,128.28,0.71911957]
[1767345096684,14.2,128.32,128.28,7.79529524]
[1767345096884,14.2,128.32,128.29,0.71911957]
[1767345097504,5.4051618,128.31,128.29,0.71911957]
[1767345097712,14.2,128.32,128.29,0.71911957]
[1767345098102,19.6051618,128.34,128.29,0.71911957]
[1767345098512,14.2,128.34,128.3,0.71911957]
[1767345098683,14.2,128.34,128.31,7.79362481]
[1767345098888,14.2,128.34,128.31,8.51274438]
[1767345099587,19.6051618,128.35,128.32,0.71911957]
[1767345099787,14.2,128.35,128.32,0.71911957]
[1767345099987,19.6051618,128.35,128.32,0.71911957]
[1767345100809,14.2,128.35,128.28,13.20060925]
[1767345100987,5.4051618,128.33,128.29,0.71911957]
[1767345102019,19.6051618,128.34,128.29,0.71911957]
[1767345102202,14.2,128.34,128.29,0.71911957]
[1767345102404,19.6051618,128.34,128.29,0.71911957]
[1767345102706,5.4051618,128.33,128.29,0.71911957]
[1767345102906,19.6051618,128.33,128.28,20.20773821]
[1767345103111,19.6051618,128.33,128.29,8.51376976]
[1767345103816,14.2,128.33,128.3,0.71911957]
[1767345104709,5.4051618,128.35,128.3,0.71911957]
[1767345104912,19.6051618,128.35,128.3,0.71911957]
[1767345105228,0.1,128.47,128.43,15.0]
[1767345105398,60.93852174,128.67,128.56,15.0]
[1767345105596,60.21176936,128.67,128.6,5.4051618]
[1767345105812,60.21176936,128.67,128.64,5.4051618]
[1767345106009,59.71176936,128.67,128.64,5.4051618]
[1767345106212,59.71176936,128.67,128.65,5.4051618]
[1767345106213,15.73077827,128.67,128.65,5.4051618]
[1767345106420,0.68783279,128.69,128.64,14.2]
[1767345106606,61.58452302,128.72,128.67,5.4051618]
[1767345106918,61.58452302,128.72,128.68,19.6051618]
[1767345107104,60.97452302,128.72,128.69,14.2]
[1767345107417,8.96613809,128.77,128.7,15.0]
[1767345107418,1.20001,128.77,128.7,15.0]
[1767345107593,1.20001,128.77,128.75,5.4051618]
[1767345107795,5.4051618,128.76,128.69,5.4051618]
[1767345108097,66.8798395,128.78,128.68,7.77093385]
[1767345108098,74.64517941,128.78,128.7,5.4051618]
[1767345108316,5.4051618,128.75,128.7,14.2]
[1767345108503,74.64514341,128.78,128.7,20.4051618]
[1767345108504,66.8798395,128.78,128.7,20.4051618]
[1767345108710,67.56767229,128.78,128.73,15.0]
[1767345108903,66.8798395,128.78,128.75,5.4051618]
[1767345109102,39.1678,128.8,128.77,5.4051618]
[1767345109617,64.25219116,128.84,128.78,23.35013837]
[1767345109804,64.25219116,128.84,128.8,5.4051618]
[1767345110201,64.25219116,128.84,128.76,28.86542837]
[1767345110202,69.65735296,128.84,128.76,15.0]
[1767345110416,0.68783279,128.81,128.78,5.4051618]
[1767345110717,0.68783279,128.81,128.77,5.4051618]
[1767345110932,0.68783279,128.8,128.74,15.0]
[1767345111104,6.09299459,128.8,128.76,5.4051618]
[1767345111306,0.68783279,128.8,128.76,5.4051618]
[1767345111811,64.25219116,128.84,128.78,5.4051618]
[1767345112014,0.68783279,128.83,128.79,5.4051618]
[1767345112211,69.65735296,128.84,128.76,22.76630616]
[1767345112212,18.32044777,128.84,128.81,5.4051618]
[1767345112414,23.72560957,128.84,128.79,5.4051618]
[1767345112613,23.72560957,128.84,128.76,22.76630616]
[1767345112798,4.4051618,128.83,128.79,5.4051618]
[1767345112998,37.90560957,128.84,128.79,5.4051618]
[1767345113231,32.50044777,128.84,128.79,5.4051618]
[1767345113415,37.90560957,128.84,128.79,5.4051618]
[1767345114147,38.59344236,128.84,128.79,5.4051618]
[1767345114449,33.18828056,128.84,128.79,7.76453645]
[1767345114608,19.00828056,128.84,128.8,5.4051618]
[1767345114802,32.50044777,128.84,128.81,5.4051618]
[1767345115002,18.32044777,128.84,128.81,5.4051618]
[1767345115429,18.32044777,128.84,128.79,0.68783279]
[1767345115635,18.32044777,128.84,128.8,5.4051618]
[1767345115937,18.32044777,128.84,128.79,0.68783279]
[1767345116141,18.32044777,128.84,128.8,5.4051618]
[1767345116328,5.4051618,128.83,128.76,14.18]
[1767345116533,14.86113816,128.82,128.78,5.4051618]
[1767345116837,14.86113816,128.82,128.73,15.0]
[1767345116838,0.68113816,128.79,128.73,15.0]
[1767345117011,14.18,128.78,128.75,5.4051618]
[1767345117212,14.18,128.78,128.73,15.0]
[1767345117412,14.16,128.78,128.75,5.4051618]
[1767345117834,14.16,128.78,128.74,5.4051618]
[1767345118030,14.16,128.78,128.75,5.4051618]
[1767345118336,14.16,128.78,128.73,22.76801902]
[1767345118337,0.68113816,128.83,128.76,5.4051618]
[1767345118647,14.16,128.82,128.77,5.4051618]
[1767345118940,0.68113816,128.81,128.77,5.4051618]
[1767345119530,14.16,128.8,128.74,8.45507534]
[1767345119712,6.08629996,128.81,128.76,5.4051618]
[1767345119914,14.16,128.8,128.76,5.4051618]
[1767345120110,14.16,128.79,128.77,5.4051618]
[1767345120447,6.08629996,128.81,128.77,5.4051618]
[1767345120448,0.68113816,128.81,128.78,5.4051618]
[1767345120614,9.31217484,128.97,128.81,15.0]
[1767345120816,9.31217484,128.97,128.88,5.4051618]
[1767345121030,14.16,128.92,128.89,5.4051618]
[1767345121237,3.90701304,128.97,128.89,22.7585538]
[1767345121410,14.16,128.92,128.86,15.0]
[1767345121611,13.66,128.92,128.88,5.4051618]
[1767345121822,5.5051618,128.93,128.89,5.4051618]
[1767345122019,19.5651618,128.92,128.87,5.4051618]
[1767345122341,14.16,128.92,128.89,5.4051618]
[1767345122521,14.16,128.92,128.88,22.7590732]
[1767345122522,14.26,128.93,128.88,15.0]
[1767345122851,0.68113816,128.92,128.85,5.4051618]
[1767345123143,7.85620805,128.93,128.84,7.76107103]
[1767345123144,0.1,128.93,128.91,5.4051618]
[1767345123320,0.1,128.93,128.88,15.0]
[1767345123321,0.1,128.93,128.9,5.4051618]
[1767345123522,0.78113816,128.93,128.89,5.4051618]
[1767345123751,0.78113816,128.93,128.88,22.75909713]
[1767345123922,66.9198593,128.95,128.92,5.4051618]
[1767345124238,42.73615926,128.95,128.88,22.75909713]
[1767345124442,14.16,128.94,128.89,5.4051618]
[1767345124742,0.68113816,128.93,128.89,5.4051618]
[1767345125333,0.68113816,128.93,128.89,13.16350253]
[1767345125627,19.41013782,128.94,128.89,13.16350253]
[1767345126135,36.6498593,128.95,128.88,7.7590953]
[1767345126317,36.6498593,128.95,128.86,29.16]
[1767345126318,70.9213615,129.13,129.02,23.35013837]
[1767345126516,70.9213615,129.13,128.99,10.8103236]
[1767345126517,28.29267431,129.13,129.11,15.0]
[1767345126712,3.85424584,129.15,129.14,15.0]
[1767345126713,1e-08,129.15,129.14,15.0]
[1767345126919,72.25519557,129.18,129.14,20.4051618]
[1767345127230,72.25519557,129.18,129.11,5.51529]
[1767345127231,72.25519557,129.18,129.15,15.0]
[1767345127430,72.25519557,129.18,129.16,5.4051618]
[1767345127632,19.5651618,129.17,129.1,15.0]
[1767345127945,0.68113816,129.1,129.01,15.0]
[1767345128126,5.4051618,129.15,129.01,15.0]
[1767345128127,8.35013837,129.15,129.01,22.75133175]
[1767345128327,0.68113816,129.11,129.04,15.0]
[1767345128533,14.82113816,129.1,129.05,5.4051618]
[1767345128733,5.4051618,129.06,129.04,22.74943805]
[1767345129036,25.63146176,129.06,128.99,15.0]
[1767345129234,14.14,129.05,128.99,22.75203835]
[1767345129751,5.4051618,129.02,128.99,22.75203835]
[1767345129931,14.82113816,129.09,129.02,15.0]
[1767345130136,0.68113816,129.09,129.02,15.0]
[1767345130545,8.68567742,129.05,129.02,15.0]
[1767345131132,8.68567742,129.03,129.02,15.0]
[1767345131333,8.68567742,129.03,129.02,22.75049707]
[1767345131648,7.9622485,129.03,128.96,15.0]
[1767345131849,14.82113816,129.05,128.96,15.0]
[1767345132153,8.68567742,128.97,128.95,0.40643862]
[1767345132357,0.68113816,129.02,128.93,30.0]
[1767345132654,8.68567742,128.96,128.89,30.0]
[1767345132944,0.68113816,128.99,128.89,30.0]
[1767345132945,0.68113816,128.97,128.91,15.0]
[1767345133120,8.68567742,128.96,128.91,15.0]
[1767345133321,9.36681558,128.97,128.92,7.75674837]
[1767345133548,7.74961274,129.04,128.92,7.75674837]
[1767345133737,8.68567742,128.99,128.92,7.73670837]
[1767345134128,9.36681558,128.99,128.92,7.73670837]
[1767345134541,0.68113816,128.99,128.93,15.0]
[1767345134724,8.68567742,129.01,128.92,27.12857929]
[1767345134924,0.68113816,129.01,128.98,8.68567742]
[1767345135151,0.68113816,129.01,128.92,8.45887976]
[1767345135350,0.68113816,129.01,128.9,19.39485238]
[1767345135351,0.68113816,128.99,128.9,15.0]
[1767345135650,14.14,129.0,128.96,8.68567742]
[1767345136434,23.32,129.14,128.98,8.68567742]
[1767345136638,0.68113816,129.06,128.99,8.68567742]
[1767345136937,8.68567742,129.12,129.03,8.68567742]
[1767345137130,8.68567742,129.12,129.0,0.72217139]
[1767345137131,0.68113816,129.1,129.0,0.72217139]
[1767345137449,0.68113816,129.08,129.02,8.68567742]
[1767345137652,0.68113816,129.06,129.02,8.68567742]
[1767345137953,0.68113816,129.06,129.03,8.54181558]
[1767345138546,8.42977209,129.06,129.04,8.68567742]
[1767345138748,0.68113816,129.06,129.04,8.68567742]
[1767345139157,0.68113816,129.06,129.0,0.72217139]
[1767345139158,0.68113816,129.06,128.98,0.72217139]
[1767345139345,0.68113816,129.06,129.05,8.68567742]
[1767345139643,0.58113816,129.12,129.05,8.68567742]
[1767345139850,0.58113816,129.11,129.06,8.68567742]
[1767345140154,14.72113816,129.11,129.06,8.68567742]
[1767345140531,14.72113816,129.11,129.04,0.72217139]
[1767345140532,0.58113816,129.1,129.04,8.68567742]
[1767345140850,14.72113816,129.1,129.04,8.68567742]
[1767345141360,23.40681558,129.1,129.04,8.68567742]
[1767345141669,0.58113816,129.08,129.02,9.40784881]
[1767345142336,0.58113816,129.08,129.03,8.68567742]
[1767345142531,0.58113816,129.08,129.02,9.40784881]
[1767345142736,16.43299735,129.08,128.97,0.72217139]
[1767345142937,0.58113816,129.07,129.02,8.68567742]
[1767345144056,9.26681558,129.05,128.96,0.72217139]
[1767345144239,8.68567742,129.05,128.97,0.72217139]
[1767345144552,9.26681558,129.05,128.98,8.68567742]
[1767345144758,0.58113816,129.05,128.98,0.72217139]
[1767345145149,0.58113816,129.03,128.95,7.75475438]
[1767345145451,9.26681558,129.02,128.96,0.69026225]
[1767345145654,9.26681558,129.02,128.96,9.37593967]
[1767345146157,0.58113816,129.02,128.96,9.37593967]
[1767345146357,14.70113816,129.02,128.96,9.37593967]
[1767345146650,14.70113816,129.02,128.97,8.68567742]
[1767345146859,14.70113816,129.02,128.96,0.69026225]
[1767345146860,14.70113816,129.02,128.96,9.37593967]
[1767345147026,14.70113816,129.02,128.96,0.69026225]
[1767345147027,31.13779383,129.02,128.96,0.69026225]
[1767345147231,8.68567742,128.98,128.92,0.6792019]
[1767345147433,22.80567742,128.97,128.9,9.36487932]
[1767345147660,14.12,128.97,128.91,8.68567742]
[1767345147830,14.12,128.97,128.93,9.36487932]
[1767345148441,23.38681558,128.97,128.9,9.36487932]
[1767345148758,30.55881148,128.99,128.92,0.6792019]
[1767345148956,22.80567742,128.99,128.92,9.36487932]
[1767345149134,30.55837758,128.99,128.92,0.6792019]
[1767345149330,31.13951574,128.99,128.92,0.6792019]
[1767345149530,31.13951574,128.99,128.92,9.36487932]
[1767345149953,0.58113816,128.98,128.9,8.68567742]
[1767345150262,9.26681558,128.98,128.91,9.36487932]
[1767345150957,17.02010171,128.98,128.91,9.36487932]
[1767345151155,17.02010171,128.98,128.91,0.6792019]
[1767345151345,8.33442429,128.98,128.91,0.6792019]
[1767345151549,17.02010171,128.98,128.91,0.6792019]
[1767345152143,9.26681558,128.97,128.91,0.6792019]
[1767345152744,9.26681558,128.97,128.89,7.75833772]
[1767345152745,8.33548059,128.96,128.89,8.68567742]
[1767345153065,8.68567742,128.94,128.88,0.6792019]
[1767345153258,14.72113816,128.95,128.89,0.6792019]
[1767345153453,23.40681558,128.95,128.89,0.6792019]
[1767345153770,14.72113816,128.95,128.89,9.36487932]
[1767345153959,14.14,128.95,128.88,0.6792019]
[1767345154168,14.14,128.95,128.9,9.36487932]
[1767345154340,14.14,128.95,128.9,0.6792019]
[1767345155236,21.89505005,128.95,128.9,0.6792019]
[1767345155863,21.89505005,128.95,128.84,34.40364289]
[1767345156052,14.14,128.94,128.89,0.6792019]
[1767345156559,14.14,128.94,128.88,8.68567742]
[1767345156560,14.14,128.94,128.9,0.6792019]
[1767345157140,16.44065068,128.95,128.9,0.6792019]
[1767345157468,30.58065068,128.95,128.9,0.6792019]
[1767345157777,14.14,128.95,128.9,0.6792019]
[1767345159851,30.58086006,128.95,128.9,0.6792019]
[1767345160944,7.75518264,128.95,128.9,0.6792019]
[1767345161268,14.14,128.94,128.9,0.6792019]
[1767345161651,13.61262032,128.94,128.9,0.6792019]
[1767345162573,22.29829774,128.94,128.9,0.6792019]
[1767345163069,30.0538719,128.94,128.9,0.6792019]
[1767345163268,30.0538719,128.94,128.88,0.6792019]
[1767345163570,8.68567742,128.93,128.88,0.6792019]
[1767345163872,8.68567742,128.92,128.88,0.6792019]
[1767345164670,22.8794359,128.94,128.92,1.0229369]
[1767345164853,30.6350089,128.94,128.92,1.0229369]
[1767345165179,8.68567742,128.93,128.92,0.9229369]
[1767345165354,21.9497097,128.94,128.92,0.9229369]
[1767345165554,8.33708938,128.94,128.92,0.9229369]
[1767345165756,14.14,128.93,128.92,0.9229369]
[1767345165971,22.82567742,128.93,128.92,0.9229369]
[1767345166174,22.82567742,128.93,128.85,0.6792019]
[1767345166370,8.68567742,128.91,128.86,0.6792019]
[1767345166575,14.14,128.9,128.86,0.6792019]
[1767345166892,14.14,128.9,128.88,0.6792019]
[1767345167456,13.415,128.9,128.88,0.6792019]
[1767345168072,13.415,128.9,128.86,0.6792019]
[1767345168272,0.71063167,128.91,128.86,17.12519082]
[1767345168473,14.85063167,128.91,128.86,17.12519082]
[1767345168662,14.14,128.91,128.87,0.6792019]
[1767345169192,14.14,128.91,128.89,0.6792019]
[1767345169382,31.29145984,128.95,128.89,0.6792019]
[1767345169574,0.71063167,128.94,128.89,0.6792019]
[1767345170565,9.39630909,128.94,128.89,0.6792019]
[1767345170750,0.71063167,128.92,128.86,9.36487932]
[1767345170956,9.39630909,128.92,128.86,0.6792019]
[1767345171457,8.46747762,128.92,128.86,9.36487932]
[1767345171666,17.15315504,128.92,128.86,0.6792019]
[1767345171969,9.39630909,128.92,128.86,0.6792019]
[1767345172376,17.15308231,128.92,128.86,0.6792019]
[1767345172880,0.71063167,128.92,128.87,0.6792019]
[1767345173377,9.39630909,128.92,128.87,0.6792019]
[1767345174074,9.39630909,128.91,128.85,0.6792019]
[1767345174680,8.46185786,128.91,128.85,0.6792019]
[1767345174977,8.68567742,128.9,128.85,0.6792019]
[1767345175879,8.68567742,128.89,128.85,0.6792019]
[1767345176773,14.14,128.9,128.8,19.40910722]
[1767345176774,8.68567742,128.88,128.83,0.65437067]
[1767345176975,0.49550649,128.89,128.83,0.65437067]
[1767345177183,8.68567742,128.88,128.83,0.65437067]
[1767345178263,22.39431679,128.89,128.83,0.65437067]
[1767345178264,14.14,128.89,128.84,0.65437067]
[1767345178574,30.58431801,128.89,128.84,0.65437067]
[1767345178773,22.82567742,128.89,128.84,0.65437067]
[1767345178959,22.82567742,128.89,128.81,8.68567742]
[1767345178960,22.39421677,128.89,128.81,8.68567742]
[1767345179154,14.14,128.88,128.83,7.76214393]
[1767345179369,14.14,128.88,128.84,0.65437067]
[1767345180461,22.82567742,128.88,128.77,62.17783962]
[1767345180657,14.14,128.88,128.84,0.65437067]
[1767345180858,9.18118391,128.91,128.85,9.34004809]
[1767345181072,14.14,128.91,128.86,8.68567742]
[1767345181258,8.25216825,128.93,128.87,0.65437067]
[1767345181457,22.39216825,128.93,128.88,0.65437067]
[1767345181682,14.63550649,128.93,128.88,0.65437067]
[1767345181855,22.39181211,128.93,128.88,0.65437067]
[1767345182057,31.07748953,128.93,128.88,0.65437067]
[1767345182585,14.63550649,128.93,128.88,0.65437067]
[1767345182879,22.39170325,128.93,128.88,0.65437067]
[1767345183977,31.07738067,128.93,128.88,0.65437067]
[1767345184168,23.32118391,128.93,128.88,0.65437067]
[1767345184967,31.07749205,128.93,128.88,0.65437067]
[1767345185482,14.14,128.93,128.88,0.65437067]
[1767345185685,14.14,128.93,128.89,0.65437067]
[1767345186782,13.90707129,128.93,128.89,0.65437067]
[1767345187471,8.68567742,128.9,128.84,8.68567742]
[1767345187673,0.49550649,128.91,128.85,9.34004809]
[1767345187976,9.18118391,128.91,128.9,1.82705274]
[1767345188282,8.68567742,128.92,128.9,1.43154625]
[1767345188480,41.05364214,128.93,128.9,1.43154625]
[1767345188785,8.68567742,128.91,128.9,1.43154625]
[1767345188984,16.4430275,128.91,128.9,1.43154625]
[1767345189199,16.4430275,128.91,128.85,0.65437067]
[1767345189376,22.82567742,128.9,128.85,0.65437067]
[1767345189584,8.68567742,128.89,128.85,0.65437067]
[1767345189972,8.68567742,128.87,128.85,0.65437067]
[1767345190184,14.14,128.9,128.83,0.65437067]
[1767345190381,8.68567742,128.84,128.83,0.65437067]
[1767345190688,14.14,128.86,128.83,0.65437067]
[1767345190982,8.68567742,128.85,128.8,0.65437067]
[1767345191182,8.68567742,128.84,128.8,0.65437067]
[1767345191563,8.68567742,128.85,128.81,0.65437067]
[1767345192487,5.3635412,128.85,128.81,0.65437067]
[1767345192781,5.3635412,128.84,128.81,0.65437067]
[1767345192988,5.3635412,128.83,128.79,0.85437067]
[1767345193187,5.3635412,128.83,128.79,0.2]
[1767345193494,5.3635412,128.83,128.8,0.65437067]
[1767345194092,5.3635412,128.82,128.8,0.65437067]
[1767345194389,5.3635412,128.81,128.79,0.2]
[1767345194790,5.3635412,128.82,128.79,0.85437067]
[1767345195874,5.3635412,128.81,128.79,0.85437067]
[1767345196095,21.90166526,128.84,128.79,0.85437067]
[1767345196268,5.3635412,128.81,128.79,0.85437067]
[1767345196591,5.3635412,128.8,128.79,0.85437067]
[1767345196788,5.3635412,128.8,128.79,0.2]
[1767345197593,14.14,128.84,128.8,0.65437067]
[1767345197767,14.14,128.84,128.79,0.2]
[1767345197970,5.3635412,128.81,128.79,0.2]
[1767345198207,5.3635412,128.8,128.79,0.2]
[1767345200669,6.04978977,128.8,128.79,0.2]
[1767345200986,6.04978977,128.8,128.75,7.76657512]
[1767345201201,5.3635412,128.78,128.74,7.96757662]
[1767345201372,5.3635412,128.79,128.74,0.2]
[1767345201574,6.04978977,128.78,128.74,0.2]
[1767345201886,6.04978977,128.78,128.72,0.2]
[1767345202194,6.04978977,128.78,128.73,0.2]
[1767345202693,0.68624857,128.78,128.73,7.96815914]
[1767345204208,20.18978977,128.8,128.74,0.2]
[1767345204585,20.18978977,128.8,128.75,7.76699029]
[1767345204788,20.18978977,128.8,128.75,7.96699029]
[1767345204980,20.18978977,128.8,128.75,0.2]
[1767345205500,6.06901878,128.79,128.73,13.33155448]
[1767345205817,0.70547758,128.79,128.74,7.96754312]
[1767345206114,6.06901878,128.79,128.74,7.96754312]
[1767345206410,0.70547758,128.79,128.74,7.96754312]
[1767345206590,0.70547758,128.79,128.74,13.33108432]
[1767345207012,0.66706463,128.85,128.75,5.3635412]
[1767345207306,6.03060583,128.82,128.77,0.2]
[1767345207486,6.03060583,128.81,128.75,0.2]
[1767345207807,0.66706463,128.81,128.76,0.2]
[1767345208106,6.03060583,128.81,128.76,0.2]
[1767345208406,0.66706463,128.81,128.76,13.32987764]
[1767345208597,0.66706463,128.81,128.76,7.96633644]
[1767345209098,0.66706463,128.81,128.76,13.32987764]
[1767345209300,0.66706463,128.81,128.76,7.96633644]
[1767345210206,0.66706463,128.81,128.76,13.32987764]
[1767345211206,0.66706463,128.81,128.76,13.12987764]
[1767345211404,0.66706463,128.8,128.75,5.3635412]
[1767345211707,0.66706463,128.8,128.75,5.5635412]
[1767345213006,0.66706463,128.8,128.75,5.3635412]
[1767345213205,0.66706463,128.79,128.74,13.33113479]
[1767345213410,0.66706463,128.83,128.76,5.3635412]
[1767345213614,0.66706463,128.81,128.76,0.2]
[1767345213790,0.66706463,128.81,128.76,5.5635412]
[1767345214311,0.66706463,128.81,128.76,0.2]
[1767345214607,0.66706463,128.8,128.74,32.75011878]
[1767345215006,0.66706463,128.8,128.75,5.3635412]
[1767345215205,0.66706463,128.8,128.74,32.75011878]
[1767345216106,0.66706463,128.8,128.75,5.3635412]
[1767345216616,0.66706463,128.8,128.75,0.2]
[1767345216918,0.66706463,128.8,128.75,5.5635412]
[1767345217405,0.66706463,128.8,128.76,5.3635412]
[1767345217602,0.66706463,128.8,128.75,5.5635412]
[1767345217999,0.66706463,128.8,128.75,13.33027788]
[1767345218610,0.66706463,128.79,128.74,7.7673415]
[1767345218810,0.66706463,128.79,128.74,13.1308827]
[1767345219116,0.66706463,128.79,128.74,7.7673415]
[1767345219316,0.66706463,128.79,128.74,13.1308827]
[1767345220103,0.66706463,128.79,128.74,7.7673415]
[1767345220302,0.66706463,128.79,128.74,7.9673415]
[1767345220610,0.66706463,128.79,128.74,13.3308827]
[1767345222010,0.66706463,128.78,128.73,7.76799679]
[1767345222219,0.66706463,128.78,128.73,13.13153799]
[1767345222398,0.66706463,128.78,128.73,7.96799679]
[1767345222713,0.66706463,128.77,128.72,13.33212051]
[1767345222911,0.66706463,128.76,128.72,7.96857931]
[1767345223717,5.3635412,128.77,128.72,7.96857931]
[1767345224018,0.66706463,128.76,128.72,0.2]
[1767345225500,0.66706463,128.76,128.72,7.96876458]
[1767345225911,0.66706463,128.76,128.72,13.53230578]
[1767345226302,0.66706463,128.76,128.72,8.16876458]
[1767345226507,0.66706463,128.76,128.72,10.17314129]
[1767345227822,0.66706463,128.76,128.72,8.16876458]
[1767345227998,0.66706463,128.76,128.72,10.17314129]
[1767345228411,2.67144134,128.76,128.72,0.2]
[1767345228720,0.66706463,128.76,128.72,0.2]
[1767345228921,14.16,128.79,128.73,0.2]
[1767345229103,0.66706463,128.79,128.74,2.20437671]
[1767345229812,0.66706463,128.79,128.75,9.771367]
[1767345230313,0.66706463,128.78,128.73,9.97202069]
[1767345230619,0.66706463,128.78,128.73,2.20437671]
[1767345231122,0.66706463,128.78,128.73,0.2]
[1767345231306,0.66706463,128.78,128.74,9.77192509]
[1767345231906,0.63706463,128.78,128.74,9.77192509]
[1767345232404,0.63706463,128.78,128.73,7.96800154]
[1767345232617,0.63706463,128.78,128.73,9.97237825]
[1767345233415,0.63706463,128.78,128.74,9.77176448]
[1767345234909,0.63706463,128.78,128.74,7.76738777]
[1767345235721,0.63706463,128.78,128.74,9.77176448]
[1767345236426,0.63706463,128.78,128.75,2.00437671]
[1767345236630,0.63706463,128.78,128.74,10.00176448]
[1767345239525,0.63706463,128.78,128.74,7.99738777]
[1767345239729,0.63706463,128.78,128.74,10.00176448]
[1767345240603,2.00437671,128.8,128.74,9.77176448]
[1767345240809,2.00437671,128.8,128.76,2.00437671]
[1767345240810,0.71200205,128.8,128.76,2.00437671]
[1767345241319,0.71200205,128.8,128.75,2.23437671]
[1767345241623,0.71200205,128.8,128.75,0.23]
[1767345241929,0.71200205,128.79,128.74,10.00176448]
[1767345242114,0.71200205,128.79,128.75,2.00437671]
[1767345243714,0.71200205,128.79,128.74,7.99738777]
[1767345243916,0.71200205,128.79,128.74,2.00437671]
[1767345244323,0.71200205,128.79,128.75,2.00437671]
[1767345244831,0.71200205,128.79,128.74,2.00437671]
[1767345245244,0.71200205,128.79,128.74,9.77187582]
[1767345245538,0.71200205,128.79,128.75,2.00437671]
[1767345245742,0.71200205,128.79,128.76,2.00437671]
[1767345246846,0.71200205,128.79,128.75,9.77126864]
[1767345249143,0.71200205,128.79,128.75,7.76689193]
[1767345249341,0.71200205,128.79,128.75,9.77126864]
[1767345253443,0.71200205,128.79,128.76,2.00437671]
[1767345253622,0.71200205,128.79,128.75,7.99689193]
[1767345253939,0.71200205,128.79,128.76,2.00437671]
[1767345254342,0.71200205,128.79,128.76,9.77066515]
[1767345254517,0.71200205,128.79,128.76,10.8966895]